Workbook

Sheet Blad1
B2: Table Comparing 10 Years of Actual Karaite Observations of the New Moon Crescent with Two Methods of Predicting it First Visibility
B3: - Testing (and Proving False) the Proposed Basis for a Friday Abib 14, 31 A.D. Crucifixion as Presented in 1939 by the SDA GC Committee and Grace E. Amadon
B4: Cf. Research Committee Final Report, Part V, pp. 37-42 and as summarized on p. 52, items # 5 &6.
B5: The Proposed Basis: Prolonged Translation Periods - A Method Based upon Rabbinic Calculations
L6: Delay of actual observation relative to predicted
A7: Karaite calendar | B7: Gregorian calendar | D7: NASA's Phases of the Moon Tables | F7: Jerusalem horizon | I7: Actual Karaite observation | L7: Actual Results | N7: Statistics
F8: Earliest predicted crescent visibility | L8: Variance from Predicted | N8: Specific variance: Incidence of delay
F9: based upon… | N9: (days)
A10: Moon # | B10: Year | C10: New Moons | D10: Conjunction | E10: Full Moon | F10: Tree of Life Chronology standards | G10: U.S. Naval Observatory, GC Committee & the 13th on Full Moon | H10: Columns G-F Difference | I10: Moon # | J10: (red font = Default after 30 days / bad weather) | L10: Tree of Life Chronology standards | M10: GC Committee &13th on Full Moon | N10: GC Committee &13th on Full Moon | P10: Tree of Life Chronology standards
I11: =IF(A12="","",A12) ->  | L11: Averages: | N11: Totals:
B12: 1999 | C12: 1 | D12: Jan 17 15:46 | E12: Jan 31 16:07 n | I12: =IF(A13="","",A13) ->  | L12: =L209 -> 0.2896551724 | M12: =M209 -> -1.427586207 | N12: 0: | O12: =N207 -> 8 | P12: < 0: | Q12: =T207 -> 0
C13: =C12+1 -> 2 | D13: Feb 16 06:39 A | E13: Mar 2 06:59 | I13: =IF(A14="","",A14) ->  | N13: -1: | O13: =O207 -> 72 | P13: 0: | Q13: =U207 -> 103
C14: =C13+1 -> 3 | D14: Mar 17 18:48 | E14: Mar 31 22:49 | N14: -2: | O14: =P207 -> 60 | P14: +1: | Q14: =V207 -> 42
A15: 1 | C15: =C14+1 -> 4 | D15: Apr 16 04:22 | E15: Apr 30 14:55 | I15: =IF(A15="","",A15) -> 1 | N15: -3: | O15: =Q207 -> 5 | P15: > +1: | Q15: =W207 -> 0
A16: =A15+1 -> 2 | C16: =C15+1 -> 5 | D16: May 15 12:05 | E16: May 30 06:40 | I16: =IF(A16="","",A16) -> 2 | N16: -4: | O16: =R207 -> 0
A17: =A16+1 -> 3 | C17: =C16+1 -> 6 | D17: Jun 13 19:03 | E17: Jun 28 21:37 | I17: =IF(A17="","",A17) -> 3 | L17: Monthly: | N17: Total: | O17: =SUM(O12:O16) -> 145 | P17: Total: | Q17: =SUM(Q12:Q16) -> 145
A18: =A17+1 -> 4 | C18: =C17+1 -> 7 | D18: Jul 13 02:24 | E18: Jul 28 11:25 p | F18: 14 | G18: 16 | H18: =G18-F18 -> 2 | I18: 4 | J18: 1999-07-14 | K18: 14 | L18: =IF($K18<>"",IF($K18>=$F18,$K18-$F18,$K18),"") -> 0 | M18: =IF($K18<>"",IF($K18<=$G18,$K18-$G18,-$G18),"") -> -2 | N18: =IF($K18<>"",IF($M18=0,1,""),"") ->  | O18: =IF($K18<>"",IF($M18=-1,1,""),"") ->  | P18: =IF($K18<>"",IF($M18=-2,1,""),"") -> 1 | Q18: =IF($K18<>"",IF($M18=-3,1,""),"") ->  | R18: =IF($K18<>"",IF($M18=-4,1,""),"") ->  | S18: =IF($K18<>"",1,"") -> 1 | T18: =IF($K18<>"",IF($L18<0,1,""),"") ->  | U18: =IF($K18<>"",IF($L18=0,1,""),"") -> 1 | V18: =IF($K18<>"",IF($L18=1,1,""),"") ->  | W18: =IF($K18<>"",IF($L18>1,1,""),"") -> 
A19: 5 | C19: 8 | D19: Aug 11 11:08 T | E19: Aug 26 23:48 | F19: 12 | G19: 15 | H19: 3 | I19: 5 | J19: 1999-08-12 | K19: 12 | L19: 0 | M19: -3 | Q19: 1 | S19: =IF($K19<>"",1,"") -> 1 | T19: =IF($K19<>"",IF($L19<0,1,""),"") ->  | U19: =IF($K19<>"",IF($L19=0,1,""),"") -> 1 | V19: =IF($K19<>"",IF($L19=1,1,""),"") ->  | W19: =IF($K19<>"",IF($L19>1,1,""),"") -> 
A20: 6 | C20: 9 | D20: Sep 9 22:02 | E20: Sep 25 10:51 | F20: 11 | G20: 13 | H20: 2 | I20: 6 | J20: 1999-09-11 | K20: 11 | L20: 0 | M20: -2 | P20: 1 | S20: 1 | U20: 1
A21: 7 | C21: 10 | D21: Oct 9 11:34 | E21: Oct 24 21:02 | F21: 10 | G21: 12 | H21: 2 | I21: 7 | J21: 1999-10-10 | K21: 10 | L21: 0 | M21: -2 | P21: 1 | S21: 1 | U21: 1
A22: 8 | C22: 11 | D22: Nov 8 03:53 | E22: Nov 23 07:04 | F22: 9 | G22: 11 | H22: 2 | I22: 8 | J22: 1999-11-09 | K22: 9 | L22: 0 | M22: -2 | P22: 1 | S22: 1 | U22: 1
A23: 9 | C23: 12 | D23: Dec 7 22:32 | E23: Dec 22 17:31 | F23: 9 | G23: 10 | H23: 1 | I23: 9 | J23: 1999-12-09 | K23: 9 | L23: 0 | M23: -1 | O23: 1 | S23: 1 | U23: 1
A25: =A23+1 -> 10 | B25: =B12+1 -> 2000 | C25: 1 | D25: Jan 6 18:14 | E25: Jan 21 04:40 t | F25: 7 | G25: 9 | H25: 2 | I25: 10 | J25: 2000-01-08 | K25: 8 | L25: 1 | M25: -1 | O25: 1 | S25: 1 | V25: 1
A26: 11 | C26: 2 | D26: Feb 5 13:03 P | E26: Feb 19 16:27 | F26: 6 | G26: 7 | H26: 1 | I26: 11 | J26: 2000-02-07 | K26: 7 | L26: 1 | M26: 0 | N26: 1 | S26: 1 | V26: 1
A27: 12 | C27: 3 | D27: Mar 6 05:17 | E27: Mar 20 04:44 | F27: 7 | G27: 8 | H27: 1 | I27: 12 | J27: 2000-03-07 | K27: 7 | L27: 0 | M27: -1 | O27: 1 | S27: 1 | U27: 1
A28: 1 | C28: 4 | D28: Apr 4 18:12 | E28: Apr 18 17:42 | F28: 5 | G28: 6 | H28: 1 | I28: 1 | J28: 2000-04-05 | K28: 5 | L28: 0 | M28: -1 | O28: 1 | S28: 1 | U28: 1
A29: 2 | C29: 5 | D29: May 4 04:12 | E29: May 18 07:34 | F29: 5 | G29: 6 | H29: 1 | I29: 2 | J29: 2000-05-05 | K29: 5 | L29: 0 | M29: -1 | O29: 1 | S29: 1 | U29: 1
A30: 3 | C30: 6 | D30: Jun 2 12:14 | E30: Jun 16 22:27 | F30: 3 | G30: 5 | H30: 2 | I30: 3 | J30: 2000-06-03 | K30: 3 | L30: 0 | M30: -2 | P30: 1 | S30: 1 | U30: 1
A31: 4 | C31: 7 | D31: Jul 1 19:20 P | E31: Jul 16 13:55 t | F31: 2 | G31: 4 | H31: 2 | I31: 4 | J31: 2000-07-03 | K31: 3 | L31: 1 | M31: -1 | O31: 1 | S31: 1 | V31: 1
A32: 5 | C32: 8 | D32: Jul 31 02:25 P | E32: Aug 15 05:13 | F32: 1 | G32: 3 | H32: 2 | I32: 5 | J32: 2000-08-01 | K32: 1 | L32: 0 | M32: -2 | P32: 1 | S32: 1 | U32: 1
A33: 6 | C33: 9 | D33: Aug 29 10:19 | E33: Sep 13 19:37 | F33: 30 | G33: 1 | H33: 2 | I33: 6 | J33: 2000-08-30 | K33: 30 | L33: 0 | M33: -1 | O33: 1 | S33: 1 | U33: 1
A34: 7 | C34: 10 | D34: Sep 27 19:53 | E34: Oct 13 08:53 | F34: 28 | G34: 1 | H34: 3 | I34: 7 | J34: 2000-09-28 | K34: 28 | L34: 0 | M34: -1 | O34: 1 | S34: 1 | U34: 1
A35: 8 | C35: 11 | D35: Oct 27 07:58 | E35: Nov 11 21:15 | F35: 28 | G35: 30 | H35: 2 | I35: 8 | J35: 2000-10-28 | K35: 28 | L35: 0 | M35: -2 | P35: 1 | S35: 1 | U35: 1
A36: 9 | C36: 12 | D36: Nov 25 23:11 | E36: Dec 11 09:03 | F36: 27 | G36: 29 | H36: 2 | I36: 9 | J36: 2000-11-27 | K36: 27 | L36: 0 | M36: -2 | P36: 1 | S36: 1 | U36: 1
A37: 10 | C37: 13 | D37: Dec 25 17:22 P | E37: Jan 9 20:24 t | F37: 26 | G37: 28 | H37: 2 | I37: 10 | J37: 2000-12-27 | K37: 27 | L37: 1 | M37: -1 | O37: 1 | S37: 1 | V37: 1
A38: 11 | B38: =B25+1 -> 2001 | C38: 1 | D38: Jan 24 13:07 | E38: Feb 8 07:12 | F38: 25 | G38: 27 | H38: 2 | I38: 11 | J38: 2001-01-25 | K38: 25 | L38: 0 | M38: -2 | P38: 1 | S38: 1 | U38: 1
A39: 12 | C39: 2 | D39: Feb 23 08:21 | E39: Mar 9 17:23 | F39: 24 | G39: 25 | H39: 1 | I39: 12 | J39: 2001-02-24 | K39: 24 | L39: 0 | M39: -1 | O39: 1 | S39: 1 | U39: 1
A40: 1 | C40: 3 | D40: Mar 25 01:21 | E40: Apr 8 03:22 | F40: 26 | G40: 27 | H40: 1 | I40: 1 | J40: 2001-03-26 | K40: 26 | L40: 0 | M40: -1 | O40: 1 | S40: 1 | U40: 1
A41: 2 | C41: 4 | D41: Apr 23 15:26 | E41: May 7 13:53 | F41: 24 | G41: 25 | H41: 1 | I41: 2 | J41: 2001-04-24 | K41: 24 | L41: 0 | M41: -1 | O41: 1 | S41: 1 | U41: 1
A42: 3 | C42: 5 | D42: May 23 02:46 | E42: Jun 6 01:39 | F42: 24 | G42: 25 | H42: 1 | I42: 3 | J42: 2001-05-24 | K42: 24 | L42: 0 | M42: -1 | O42: 1 | S42: 1 | U42: 1
A43: 4 | C43: 6 | D43: Jun 21 11:58 T | E43: Jul 5 15:04 p | F43: 22 | G43: 23 | H43: 1 | I43: 4 | J43: 2001-06-22 | K43: 22 | L43: 0 | M43: -1 | O43: 1 | S43: 1 | U43: 1
A44: 5 | C44: 7 | D44: Jul 20 19:44 | E44: Aug 4 05:56 | F44: 21 | G44: 23 | H44: 2 | I44: 5 | J44: 2001-07-21 | K44: 21 | L44: 0 | M44: -2 | P44: 1 | S44: 1 | U44: 1
A45: 6 | C45: 8 | D45: Aug 19 02:55 | E45: Sep 2 21:43 | F45: 20 | G45: 22 | H45: 2 | I45: 6 | J45: 2001-08-20 | K45: 20 | L45: 0 | M45: -2 | P45: 1 | S45: 1 | U45: 1
A46: 7 | C46: 9 | D46: Sep 17 10:27 | E46: Oct 2 13:49 | F46: 18 | G46: 20 | H46: 2 | I46: 7 | J46: 2001-09-18 | K46: 18 | L46: 0 | M46: -2 | P46: 1 | S46: 1 | U46: 1
A47: 8 | C47: 10 | D47: Oct 16 19:23 | E47: Nov 1 05:41 | F47: 17 | G47: 20 | H47: 3 | I47: 8 | J47: 2001-10-18 | K47: 18 | L47: 1 | M47: -2 | P47: 1 | S47: 1 | V47: 1
A48: 9 | C48: 11 | D48: Nov 15 06:40 | E48: Nov 30 20:49 | F48: 16 | G48: 18 | H48: 2 | I48: 9 | J48: 2001-11-16 | K48: 16 | L48: 0 | M48: -2 | P48: 1 | S48: 1 | U48: 1
A49: 10 | C49: 12 | D49: Dec 14 20:48 A | E49: Dec 30 10:41 n | F49: 15 | G49: 18 | H49: 3 | I49: 10 | J49: 2001-12-16 | K49: 16 | L49: 1 | M49: -2 | P49: 1 | S49: 1 | V49: 1
N50: =IF($K50<>"",IF($M50=0,1,""),"") ->  | O50: =IF($K50<>"",IF($M50=-1,1,""),"") ->  | P50: =IF($K50<>"",IF($M50=-2,1,""),"") ->  | Q50: =IF($K50<>"",IF($M50=-3,1,""),"") ->  | R50: =IF($K50<>"",IF($M50=-4,1,""),"") -> 
A51: =A49+1 -> 11 | B51: =B38+1 -> 2002 | C51: 1 | D51: Jan 13 13:29 | E51: Jan 28 22:50 | F51: 14 | G51: 17 | H51: 3 | I51: 11 | J51: 2002-01-15 | K51: 15 | L51: 1 | M51: -2 | P51: 1 | S51: 1 | V51: 1
A52: 12 | C52: 2 | D52: Feb 12 07:41 | E52: Feb 27 09:17 | F52: 13 | G52: 15 | H52: 2 | I52: 12 | J52: 2002-02-13 | K52: 13 | L52: 0 | M52: -2 | P52: 1 | S52: 1 | U52: 1
A53: 1 | C53: 3 | D53: Mar 14 02:03 | E53: Mar 28 18:25 | F53: 15 | G53: 16 | H53: 1 | I53: 1 | J53: 2002-03-15 | K53: 15 | L53: 0 | M53: -1 | O53: 1 | S53: 1 | U53: 1
A54: 2 | C54: 4 | D54: Apr 12 19:21 | E54: Apr 27 03:00 | F54: 13 | G54: 15 | H54: 2 | I54: 2 | J54: 2002-04-14 | K54: 14 | L54: 1 | M54: -1 | O54: 1 | S54: 1 | V54: 1
A55: 3 | C55: 5 | D55: May 12 10:45 | E55: May 26 11:51 n | F55: 13 | G55: 14 | H55: 1 | I55: 3 | J55: 2002-05-14 | K55: 14 | L55: 1 | M55: 0 | N55: 1 | S55: 1 | V55: 1
A56: 4 | C56: 6 | D56: Jun 10 23:47 A | E56: Jun 24 21:42 n | F56: 12 | G56: 13 | H56: 1 | I56: 4 | J56: 2002-06-12 | K56: 12 | L56: 0 | M56: -1 | O56: 1 | S56: 1 | U56: 1
A57: 5 | C57: 7 | D57: Jul 10 10:26 | E57: Jul 24 09:07 | F57: 11 | G57: 12 | H57: 1 | I57: 5 | J57: 2002-07-11 | K57: 11 | L57: 0 | M57: -1 | O57: 1 | S57: 1 | U57: 1
A58: 6 | C58: 8 | D58: Aug 8 19:15 | E58: Aug 22 22:29 | F58: 9 | G58: 11 | H58: 2 | I58: 6 | J58: 2002-08-09 | K58: 9 | L58: 0 | M58: -2 | P58: 1 | S58: 1 | U58: 1
A59: 7 | C59: 9 | D59: Sep 7 03:10 | E59: Sep 21 13:59 | F59: 8 | G59: 9 | H59: 1 | I59: 7 | J59: 2002-09-08 | K59: 8 | L59: 0 | M59: -1 | O59: 1 | S59: 1 | U59: 1
A60: 8 | C60: 10 | D60: Oct 6 11:17 | E60: Oct 21 07:20 | F60: 7 | G60: 9 | H60: 2 | I60: 8 | J60: 2002-10-07 | K60: 7 | L60: 0 | M60: -2 | P60: 1 | S60: 1 | U60: 1
A61: 9 | C61: 11 | D61: Nov 4 20:34 | E61: Nov 20 01:34 n | F61: 5 | G61: 8 | H61: 3 | I61: 9 | J61: 2002-11-06 | K61: 6 | L61: 1 | M61: -2 | P61: 1 | S61: 1 | V61: 1
A62: 10 | C62: 12 | D62: Dec 4 07:34 T | E62: Dec 19 19:10 | F62: 5 | G62: 7 | H62: 2 | I62: 10 | J62: 2002-12-05 | K62: 5 | L62: 0 | M62: -2 | P62: 1 | S62: 1 | U62: 1
A64: =A62+1 -> 11 | B64: =B51+1 -> 2003 | C64: 1 | D64: Jan 2 20:23 | E64: Jan 18 10:48 | F64: 3 | G64: 6 | H64: 3 | I64: 11 | J64: 2003-01-04 | K64: 4 | L64: 1 | M64: -2 | P64: 1 | S64: 1 | V64: 1
A65: 12 | C65: 2 | D65: Feb 1 10:48 | E65: Feb 16 23:51 | F65: 2 | G65: 5 | H65: 3 | I65: 12 | J65: 2003-02-02 | K65: 2 | L65: 0 | M65: -3 | Q65: 1 | S65: 1 | U65: 1
A66: 13 | C66: 3 | D66: Mar 3 02:35 | E66: Mar 18 10:34 | F66: 4 | G66: 6 | H66: 2 | I66: 13 | J66: 2003-03-04 | K66: 4 | L66: 0 | M66: -2 | P66: 1 | S66: 1 | U66: 1
A67: 1 | C67: 4 | D67: Apr 1 19:19 | E67: Apr 16 19:36 | F67: 2 | G67: 4 | H67: 2 | I67: 1 | J67: 2003-04-03 | K67: 3 | L67: 1 | M67: -1 | O67: 1 | S67: 1 | V67: 1
A68: 2 | C68: 5 | D68: May 1 12:15 | E68: May 16 03:36 t | F68: 2 | G68: 4 | H68: 2 | I68: 2 | J68: 2003-05-02 | K68: 2 | L68: 0 | M68: -2 | P68: 1 | S68: 1 | U68: 1
A69: 3 | C69: 6 | D69: May 31 04:20 A | E69: Jun 14 11:16 | F69: 1 | G69: 2 | H69: 1 | I69: 3 | J69: 2003-06-01 | K69: 1 | L69: 0 | M69: -1 | O69: 1 | S69: 1 | U69: 1
A70: 4 | C70: 7 | D70: Jun 29 18:39 | E70: Jul 13 19:21 | F70: 30 | G70: 1 | H70: 1 | I70: 4 | J70: 2003-07-01 | K70: 1 | L70: 1 | M70: 0 | N70: 1 | S70: 1 | V70: 1
A71: 5 | C71: 8 | D71: Jul 29 06:53 | E71: Aug 12 04:48 | F71: 30 | G71: 31 | H71: 1 | I71: 5 | J71: 2003-07-30 | K71: 30 | L71: 0 | M71: -1 | O71: 1 | S71: 1 | U71: 1
A72: 6 | C72: 9 | D72: Aug 27 17:26 | E72: Sep 10 16:36 | F72: 28 | G72: 29 | H72: 1 | I72: 6 | J72: 2003-08-29 | K72: 29 | L72: 1 | M72: 0 | N72: 1 | S72: 1 | V72: 1
A73: 7 | C73: 10 | D73: Sep 26 03:09 | E73: Oct 10 07:27 | F73: 27 | G73: 28 | H73: 1 | I73: 7 | J73: 2003-09-27 | K73: 27 | L73: 0 | M73: -1 | O73: 1 | S73: 1 | U73: 1
A74: 8 | C74: 11 | D74: Oct 25 12:50 | E74: Nov 9 01:14 t | F74: 26 | G74: 28 | H74: 2 | I74: 8 | J74: 2003-10-26 | K74: 26 | L74: 0 | M74: -2 | P74: 1 | S74: 1 | U74: 1
A75: 9 | C75: 12 | D75: Nov 23 22:59 T | E75: Dec 8 20:37 | F75: 25 | G75: 26 | H75: 1 | I75: 9 | J75: 2003-11-25 | K75: 25 | L75: 0 | M75: -1 | O75: 1 | S75: 1 | U75: 1
A76: 10 | C76: 13 | D76: Dec 23 09:43 | E76: Jan 7 15:40 | F76: 24 | G76: 26 | H76: 2 | I76: 10 | J76: 2003-12-24 | K76: 24 | L76: 0 | M76: -2 | P76: 1 | S76: 1 | U76: 1
A77: 11 | B77: =B64+1 -> 2004 | C77: 1 | D77: Jan 21 21:05 | E77: Feb 6 08:47 | F77: 22 | G77: 25 | H77: =G77-F77 -> 3 | I77: =IF(A77="","",A77) -> 11 | J77: 2004-01-23 | K77: 23 | L77: 1 | M77: -2 | P77: 1 | S77: 1 | V77: 1
A78: 12 | C78: =C77+1 -> 2 | D78: Feb 20 09:18 | E78: Mar 6 23:14 | F78: 21 | G78: 23 | H78: 2 | I78: 12 | J78: 2004-02-21 | K78: 21 | L78: 0 | M78: -2 | P78: 1 | S78: 1 | U78: 1
A79: 1 | C79: 3 | D79: Mar 20 22:41 | E79: Apr 5 11:03 | F79: 22 | G79: 24 | H79: 2 | I79: 1 | J79: 2004-03-22 | K79: 22 | L79: 0 | M79: -2 | P79: 1 | S79: 1 | U79: 1
A80: 2 | C80: 4 | D80: Apr 19 13:21 P | E80: May 4 20:33 t | F80: 20 | G80: 22 | H80: 2 | I80: 2 | J80: 2004-04-20 | K80: 20 | L80: 0 | M80: -2 | P80: 1 | S80: 1 | U80: 1
A81: 3 | C81: 5 | D81: May 19 04:52 | E81: Jun 3 04:20 | F81: 20 | G81: 22 | H81: 2 | I81: 3 | J81: 2004-05-20 | K81: 20 | L81: 0 | M81: -2 | P81: 1 | S81: 1 | U81: 1
A82: =A81+1 -> 4 | C82: 6 | D82: Jun 17 20:27 | E82: Jul 2 11:09 | F82: 18 | G82: 20 | H82: 2 | I82: 4 | J82: 2004-06-19 | K82: 19 | L82: =IF($K82<>"",IF($K82>=$F82,$K82-$F82,$K82),"") -> 1 | M82: =IF($K82<>"",IF($K82<=$G82,$K82-$G82,-$G82),"") -> -1 | N82: =IF($K82<>"",IF($M82=0,1,""),"") ->  | O82: =IF($K82<>"",IF($M82=-1,1,""),"") -> 1 | P82: =IF($K82<>"",IF($M82=-2,1,""),"") ->  | Q82: =IF($K82<>"",IF($M82=-3,1,""),"") ->  | R82: =IF($K82<>"",IF($M82=-4,1,""),"") ->  | S82: 1 | V82: 1
A83: 5 | C83: 7 | D83: Jul 17 11:24 | E83: Jul 31 18:05 | F83: 18 | G83: 19 | H83: 1 | I83: 5 | J83: 2004-07-18 | K83: 18 | L83: 0 | M83: -1 | O83: 1 | S83: =IF($K83<>"",1,"") -> 1 | T83: =IF($K83<>"",IF($L83<0,1,""),"") ->  | U83: =IF($K83<>"",IF($L83=0,1,""),"") -> 1 | V83: =IF($K83<>"",IF($L83=1,1,""),"") ->  | W83: =IF($K83<>"",IF($L83>1,1,""),"") -> 
A84: 6 | C84: 8 | D84: Aug 16 01:24 | E84: Aug 30 02:22 | F84: 17 | G84: 18 | H84: 1 | I84: 6 | J84: 2004-08-17 | K84: 17 | L84: 0 | M84: -1 | O84: 1 | S84: 1 | U84: 1
A85: 7 | C85: 9 | D85: Sep 14 14:29 | E85: Sep 28 13:09 | F85: 15 | G85: 16 | H85: 1 | I85: 7 | J85: 2004-09-15 | K85: 15 | L85: 0 | M85: -1 | O85: 1 | S85: 1 | U85: 1
A86: 8 | C86: 10 | D86: Oct 14 02:48 P | E86: Oct 28 03:07 t | F86: 15 | G86: 16 | H86: 1 | I86: 8 | J86: 2004-10-15 | K86: 15 | L86: 0 | M86: -1 | O86: 1 | S86: 1 | U86: 1
A87: 9 | C87: 11 | D87: Nov 12 14:27 | E87: Nov 26 20:07 | F87: 13 | G87: 14 | H87: 1 | I87: 9 | J87: 2004-11-13 | K87: 13 | L87: 0 | M87: -1 | O87: 1 | S87: 1 | U87: 1
A88: 10 | C88: 12 | D88: Dec 12 01:29 | E88: Dec 26 15:06 | F88: 13 | G88: 14 | H88: 1 | I88: 10 | J88: 2004-12-13 | K88: 13 | L88: 0 | M88: -1 | O88: 1 | S88: 1 | U88: 1
A90: =A88+1 -> 11 | B90: =B77+1 -> 2005 | C90: 1 | D90: Jan 10 12:03 | E90: Jan 25 10:32 | F90: 11 | G90: 13 | H90: 2 | I90: 11 | J90: 2005-01-11 | K90: 11 | L90: 0 | M90: -2 | P90: 1 | S90: 1 | U90: 1
A91: 12 | C91: 2 | D91: Feb 8 22:28 | E91: Feb 24 04:54 | F91: 10 | G91: 12 | H91: 2 | I91: 12 | J91: 2005-02-10 | K91: 10 | L91: 0 | M91: -2 | P91: 1 | S91: 1 | U91: 1
A92: 1 | C92: 3 | D92: Mar 10 09:10 | E92: Mar 25 20:58 | F92: 11 | G92: 13 | H92: 2 | I92: 1 | J92: 2005-03-11 | K92: 11 | L92: 0 | M92: -2 | P92: 1 | S92: 1 | U92: 1
A93: 2 | C93: 4 | D93: Apr 8 20:32 H | E93: Apr 24 10:06 n | F93: 9 | G93: 12 | H93: 3 | I93: 2 | J93: 2005-04-10 | K93: 10 | L93: 1 | M93: -2 | P93: 1 | S93: 1 | V93: 1
A94: 3 | C94: 5 | D94: May 8 08:45 | E94: May 23 20:18 | F94: 9 | G94: 11 | H94: 2 | I94: 3 | J94: 2005-05-09 | K94: 9 | L94: 0 | M94: -2 | P94: 1 | S94: 1 | U94: 1
A95: 4 | C95: 6 | D95: Jun 6 21:55 | E95: Jun 22 04:14 | F95: 8 | G95: 10 | H95: 2 | I95: 4 | J95: 2005-06-08 | K95: 8 | L95: 0 | M95: -2 | P95: 1 | S95: 1 | U95: 1
A96: 5 | C96: 7 | D96: Jul 6 12:03 | E96: Jul 21 11:00 | F96: 7 | G96: 9 | H96: 2 | I96: 5 | J96: 2005-07-07 | K96: 7 | L96: 0 | M96: -2 | P96: 1 | S96: 1 | U96: 1
A97: 6 | C97: 8 | D97: Aug 5 03:05 | E97: Aug 19 17:53 | F97: 6 | G97: 7 | H97: 1 | I97: 6 | J97: 2005-08-06 | K97: 6 | L97: 0 | M97: -1 | O97: 1 | S97: 1 | U97: 1
A98: 7 | C98: 9 | D98: Sep 3 18:45 | E98: Sep 18 02:01 | F98: 4 | G98: 6 | H98: 2 | I98: 7 | J98: 2005-09-05 | K98: 5 | L98: 1 | M98: -1 | O98: 1 | S98: 1 | V98: 1
A99: 8 | C99: 10 | D99: Oct 3 10:28 A | E99: Oct 17 12:14 p | F99: 4 | G99: 5 | H99: 1 | I99: 8 | J99: 2005-10-05 | K99: 5 | L99: 1 | M99: 0 | N99: 1 | S99: 1 | V99: 1
A100: 9 | C100: 11 | D100: Nov 2 01:25 | E100: Nov 16 00:58 | F100: 3 | G100: 4 | H100: 1 | I100: 9 | J100: 2005-11-03 | K100: 3 | L100: 0 | M100: -1 | O100: 1 | S100: 1 | U100: 1
A101: 10 | C101: 12 | D101: Dec 1 15:01 | E101: Dec 15 16:16 | F101: 2 | G101: 3 | H101: 1 | I101: 10 | J101: 2005-12-03 | K101: 3 | L101: 1 | M101: 0 | N101: 1 | S101: 1 | V101: 1
A102: 11 | C102: 13 | D102: Dec 31 03:12 | E102: Jan 14 09:48 | F102: 1 | G102: 2 | H102: 1 | I102: 11 | J102: 2006-01-01 | K102: 1 | L102: 0 | M102: -1 | O102: 1 | S102: 1 | U102: 1
A103: 12 | B103: =B90+1 -> 2006 | C103: 1 | D103: Jan 29 14:15 | E103: Feb 13 04:44 | F103: 30 | G103: 1 | H103: 2 | I103: 12 | J103: 2006-01-30 | K103: 30 | L103: 0 | M103: -1 | O103: 1 | S103: 1 | U103: 1
A104: 13 | C104: 2 | D104: Feb 28 00:31 | E104: Mar 14 23:35 n | F104: 1 | G104: 3 | H104: 2 | I104: 13 | J104: 2006-03-01 | K104: 1 | L104: 0 | M104: -2 | P104: 1 | S104: 1 | U104: 1
A105: 1 | C105: 3 | D105: Mar 29 10:15 T | E105: Apr 13 16:40 | F105: 30 | G105: 1 | H105: 2 | I105: 1 | J105: 2006-03-30 | K105: 30 | L105: 0 | M105: -1 | O105: 1 | S105: 1 | U105: 1
A106: 2 | C106: 4 | D106: Apr 27 19:44 | E106: May 13 06:51 | F106: 28 | G106: 1 | H106: 3 | I106: 2 | J106: 2006-04-28 | K106: 28 | L106: 0 | M106: -1 | O106: 1 | S106: 1 | U106: 1
A107: 3 | C107: 5 | D107: May 27 05:26 | E107: Jun 11 18:03 | F107: 28 | G107: 30 | H107: 2 | I107: 3 | J107: 2006-05-28 | K107: 28 | L107: 0 | M107: -2 | P107: 1 | S107: 1 | U107: 1
A108: 4 | C108: 6 | D108: Jun 25 16:05 | E108: Jul 11 03:02 | F108: 26 | G108: 29 | H108: 3 | I108: 4 | J108: 2006-06-26 | K108: 26 | L108: 0 | M108: -3 | Q108: 1 | S108: 1 | U108: 1
A109: 5 | C109: 7 | D109: Jul 25 04:31 | E109: Aug 9 10:54 | F109: 26 | G109: 28 | H109: 2 | I109: 5 | J109: 2006-07-26 | K109: 26 | L109: 0 | M109: -2 | P109: 1 | S109: 1 | U109: 1
A110: 6 | C110: 8 | D110: Aug 23 19:10 | E110: Sep 7 18:42 p | F110: 24 | G110: 26 | H110: 2 | I110: 6 | J110: 2006-08-25 | K110: 25 | L110: 1 | M110: -1 | O110: 1 | S110: 1 | V110: 1
A111: 7 | C111: 9 | D111: Sep 22 11:45 A | E111: Oct 7 03:13 | F111: 23 | G111: 25 | H111: 2 | I111: 7 | J111: 2006-09-24 | K111: 24 | L111: 1 | M111: -1 | O111: 1 | S111: 1 | V111: 1
A112: 8 | C112: 10 | D112: Oct 22 05:14 | E112: Nov 5 12:58 | F112: 23 | G112: 24 | H112: 1 | I112: 8 | J112: 2006-10-24 | K112: 24 | L112: 1 | M112: 0 | N112: 1 | S112: 1 | V112: 1
A113: 9 | C113: 11 | D113: Nov 20 22:18 | E113: Dec 5 00:25 | F113: 22 | G113: 23 | H113: 1 | I113: 9 | J113: 2006-11-22 | K113: 22 | L113: 0 | M113: -1 | O113: 1 | S113: 1 | U113: 1
A114: 10 | C114: 12 | D114: Dec 20 14:01 | E114: Jan 3 13:57 | F114: 21 | G114: 22 | H114: 1 | I114: 10 | J114: 2006-12-21 | K114: 21 | L114: 0 | M114: -1 | N114: =IF($K114<>"",IF($M114=0,1,""),"") ->  | O114: =IF($K114<>"",IF($M114=-1,1,""),"") -> 1 | P114: =IF($K114<>"",IF($M114=-2,1,""),"") ->  | Q114: =IF($K114<>"",IF($M114=-3,1,""),"") ->  | R114: =IF($K114<>"",IF($M114=-4,1,""),"") ->  | S114: 1 | U114: 1
A116: =A114+1 -> 11 | B116: =B103+1 -> 2007 | C116: 1 | D116: Jan 19 04:01 | E116: Feb 2 05:45 | F116: 20 | G116: 21 | H116: 1 | I116: 11 | J116: 2007-01-20 | K116: 20 | L116: 0 | M116: -1 | O116: 1 | S116: 1 | U116: 1
A117: 12 | C117: 2 | D117: Feb 17 16:14 | E117: Mar 3 23:17 t | F117: 18 | G117: 20 | H117: 2 | I117: 12 | J117: 2007-02-18 | K117: 18 | L117: 0 | M117: -2 | P117: 1 | S117: 1 | U117: 1
A118: 1 | C118: 3 | D118: Mar 19 02:43 P | E118: Apr 2 17:15 | F118: 20 | G118: 21 | H118: 1 | I118: 1 | J118: 2007-03-20 | K118: 20 | L118: 0 | M118: -1 | O118: 1 | S118: 1 | U118: 1
A119: 2 | C119: 4 | D119: Apr 17 11:36 | E119: May 2 10:09 | F119: 18 | G119: 20 | H119: 2 | I119: 2 | J119: 2007-04-18 | K119: 18 | L119: 0 | M119: -2 | P119: 1 | S119: 1 | U119: 1
A120: 3 | C120: 5 | D120: May 16 19:27 | E120: Jun 1 01:04 | F120: 17 | G120: 20 | H120: 3 | I120: 3 | J120: 2007-05-17 | K120: 17 | L120: 0 | M120: -3 | Q120: 1 | S120: 1 | U120: 1
A121: 4 | C121: 6 | D121: Jun 15 03:13 | E121: Jun 30 13:49 | F121: 16 | G121: 18 | H121: 2 | I121: 4 | J121: 2007-06-16 | K121: 16 | L121: 0 | M121: -2 | P121: 1 | S121: 1 | U121: 1
A122: 5 | C122: 7 | D122: Jul 14 12:04 | E122: Jul 30 00:48 | F122: 15 | G122: 18 | H122: 3 | I122: 5 | J122: 2007-07-15 | K122: 15 | L122: 0 | M122: -3 | Q122: 1 | S122: 1 | U122: 1
A123: 6 | C123: 8 | D123: Aug 12 23:03 | E123: Aug 28 10:35 t | F123: 14 | G123: 14 | H123: 0 | I123: 6 | J123: 2007-08-14 | K123: 14 | L123: 0 | M123: 0 | N123: 1 | S123: 1 | U123: 1
A124: 7 | C124: 9 | D124: Sep 11 12:44 P | E124: Sep 26 19:45 | F124: 12 | G124: 14 | H124: 2 | I124: 7 | J124: 2007-09-13 | K124: 13 | L124: 1 | M124: -1 | O124: 1 | S124: 1 | V124: 1
A125: 8 | C125: 10 | D125: Oct 11 05:01 | E125: Oct 26 04:52 | F125: 12 | G125: 14 | H125: 2 | I125: 8 | J125: 2007-10-13 | K125: 13 | L125: 1 | M125: -1 | O125: 1 | S125: 1 | V125: 1
A126: 9 | C126: 11 | D126: Nov 9 23:03 | E126: Nov 24 14:30 | F126: 11 | G126: 12 | H126: 1 | I126: 9 | J126: 2007-11-11 | K126: 11 | L126: 0 | M126: -1 | O126: 1 | S126: 1 | U126: 1
A127: 10 | C127: 12 | D127: Dec 9 17:40 | E127: Dec 24 01:16 | F127: 10 | G127: 12 | H127: 2 | I127: 10 | J127: 2007-12-11 | K127: 11 | L127: 1 | M127: -1 | O127: 1 | S127: 1 | V127: 1
A129: =A127+1 -> 11 | B129: =B116+1 -> 2008 | C129: 1 | D129: Jan 8 11:37 | E129: Jan 22 13:35 | F129: 9 | G129: 10 | H129: 1 | I129: 11 | J129: 2008-01-09 | K129: 9 | L129: 0 | M129: -1 | O129: 1 | S129: 1 | U129: 1
A130: 12 | C130: 2 | D130: Feb 7 03:44 A | E130: Feb 21 03:31 t | F130: 8 | G130: 9 | H130: 1 | I130: 12 | J130: 2008-02-08 | K130: 8 | L130: 0 | M130: -1 | O130: 1 | S130: 1 | U130: 1
A131: 13 | C131: 3 | D131: Mar 7 17:14 | E131: Mar 21 18:40 | F131: 8 | G131: 9 | H131: 1 | I131: 13 | J131: 2008-03-08 | K131: 8 | L131: 0 | M131: -1 | O131: 1 | S131: 1 | U131: 1
A132: 1 | C132: 4 | D132: Apr 6 03:55 | E132: Apr 20 10:25 | F132: 7 | G132: 8 | H132: 1 | I132: 1 | J132: 2008-04-07 | K132: 7 | L132: 0 | M132: -1 | O132: 1 | S132: 1 | U132: 1
A133: 2 | C133: 5 | D133: May 5 12:18 | E133: May 20 02:11 | F133: 6 | G133: 8 | H133: 2 | I133: 2 | J133: 2008-05-06 | K133: 6 | L133: 0 | M133: -2 | P133: 1 | S133: 1 | U133: 1
A134: 3 | C134: 6 | D134: Jun 3 19:23 | E134: Jun 18 17:30 | F134: 4 | G134: 6 | H134: 2 | I134: 3 | J134: 2008-06-04 | K134: 4 | L134: 0 | M134: -2 | P134: 1 | S134: 1 | U134: 1
A135: 4 | C135: 7 | D135: Jul 3 02:19 | E135: Jul 18 07:59 | F135: 4 | G135: 6 | H135: 2 | I135: 4 | J135: 2008-07-04 | K135: 4 | L135: 0 | M135: -2 | P135: 1 | S135: 1 | U135: 1
A136: 5 | C136: 8 | D136: Aug 1 10:13 T | E136: Aug 16 21:16 p | F136: 2 | G136: 4 | H136: 2 | I136: 5 | J136: 2008-08-02 | K136: 2 | L136: 0 | M136: -2 | P136: 1 | S136: 1 | U136: 1
A137: 6 | C137: 9 | D137: Aug 30 19:58 | E137: Sep 15 09:13 | F137: 31 | G137: 3 | H137: 3 | I137: 6 | J137: 2008-09-01 | K137: 1 | L137: =IF($K137<>"",IF($K137>=$F137,$K137-$F137,$K137),"") -> 1 | M137: =IF($K137<>"",IF($K137<=$G137,$K137-$G137,-$G137),"") -> -2 | P137: 1 | S137: 1 | V137: 1
A138: 7 | C138: 10 | D138: Sep 29 08:12 | E138: Oct 14 20:03 | F138: 30 | G138: 2 | H138: 2 | I138: 7 | J138: 2008-10-01 | K138: 1 | L138: =IF($K138<>"",IF($K138>=$F138,$K138-$F138,$K138),"") -> 1 | M138: =IF($K138<>"",IF($K138<=$G138,$K138-$G138,-$G138),"") -> -1 | O138: 1 | S138: 1 | V138: 1
A139: 8 | C139: 11 | D139: Oct 28 23:14 | E139: Nov 13 06:17 | F139: 30 | G139: 1 | H139: 2 | I139: 8 | J139: 2008-10-31 | K139: 31 | L139: 1 | M139: -1 | O139: 1 | S139: 1 | V139: 1
A140: 9 | C140: 12 | D140: Nov 27 16:55 | E140: Dec 12 16:37 | F140: 28 | G140: 31 | H140: 3 | I140: 9 | J140: 2008-11-29 | K140: 29 | L140: 1 | M140: -2 | P140: 1 | S140: 1 | V140: 1
A141: 10 | C141: 13 | D141: Dec 27 12:23 | E141: Jan 11 03:27 | F141: 28 | G141: 30 | H141: =G141-F141 -> 2 | I141: =IF(A141="","",A141) -> 10 | J141: 2008-12-29 | K141: 29 | L141: 1 | M141: -1 | O141: 1 | S141: 1 | V141: 1
A142: 11 | B142: =B129+1 -> 2009 | C142: 1 | D142: Jan 26 07:55 A | E142: Feb 9 14:49 n | F142: 27 | G142: 28 | H142: 1 | I142: 11 | J142: 2009-01-27 | K142: 27 | L142: 0 | M142: -1 | O142: 1 | S142: 1 | U142: 1
A143: 12 | C143: 2 | D143: Feb 25 01:35 | E143: Mar 11 02:38 | F143: 26 | G143: 27 | H143: 1 | I143: 12 | J143: 2009-02-26 | K143: 26 | L143: 0 | M143: -1 | O143: 1 | S143: 1 | U143: 1
A144: 1 | C144: =C143+1 -> 3 | D144: Mar 26 16:06 | E144: Apr 9 14:56 | F144: 27 | G144: 28 | H144: 1 | I144: 1 | J144: 2009-03-27 | K144: 27 | L144: 0 | M144: -1 | O144: 1 | S144: 1 | U144: 1
A145: 2 | C145: 4 | D145: Apr 25 03:23 | E145: May 9 04:01 | F145: 26 | G145: 27 | H145: 1 | I145: 2 | J145: 2009-04-26 | K145: 26 | L145: 0 | M145: -1 | O145: 1 | S145: 1 | U145: 1
A146: =A145+1 -> 3 | C146: 5 | D146: May 24 12:11 | E146: Jun 7 18:12 | F146: 25 | G146: 26 | H146: 1 | I146: 3 | J146: 2009-05-25 | K146: 25 | L146: 0 | M146: -1 | N146: =IF($K146<>"",IF($M146=0,1,""),"") ->  | O146: =IF($K146<>"",IF($M146=-1,1,""),"") -> 1 | P146: =IF($K146<>"",IF($M146=-2,1,""),"") ->  | Q146: =IF($K146<>"",IF($M146=-3,1,""),"") ->  | R146: =IF($K146<>"",IF($M146=-4,1,""),"") ->  | S146: 1 | U146: 1
A147: 4 | C147: 6 | D147: Jun 22 19:35 | E147: Jul 7 09:21 n | F147: 23 | G147: 25 | H147: 2 | I147: 4 | J147: 2009-06-23 | K147: 23 | L147: 0 | M147: -2 | P147: 1 | S147: =IF($K147<>"",1,"") -> 1 | T147: =IF($K147<>"",IF($L147<0,1,""),"") ->  | U147: =IF($K147<>"",IF($L147=0,1,""),"") -> 1 | V147: =IF($K147<>"",IF($L147=1,1,""),"") ->  | W147: =IF($K147<>"",IF($L147>1,1,""),"") -> 
A148: 5 | C148: 7 | D148: Jul 22 02:35 T | E148: Aug 6 00:55 n | F148: 23 | G148: 25 | H148: 2 | I148: 5 | J148: 2009-07-23 | K148: 23 | L148: 0 | M148: -2 | P148: 1 | S148: 1 | U148: 1
A149: 6 | C149: 8 | D149: Aug 20 10:01 | E149: Sep 4 16:03 | F149: 21 | G149: 23 | H149: 2 | I149: 6 | J149: 2009-08-22 | K149: 22 | L149: 1 | M149: -1 | O149: 1 | S149: 1 | V149: 1
A150: 7 | C150: 9 | D150: Sep 18 18:44 | E150: Oct 4 06:10 | F150: 19 | G150: 22 | H150: 3 | I150: 7 | J150: 2009-09-20 | K150: 20 | L150: 1 | M150: -2 | P150: 1 | S150: 1 | V150: 1
A151: 8 | C151: 10 | D151: Oct 18 05:33 | E151: Nov 2 19:14 | F151: 19 | G151: 21 | H151: 2 | I151: 8 | J151: 2009-10-20 | K151: 20 | L151: 1 | M151: -1 | O151: 1 | S151: 1 | V151: 1
A152: 9 | C152: 11 | D152: Nov 16 19:14 | E152: Dec 2 07:30 | F152: 17 | G152: 20 | H152: 3 | I152: 9 | J152: 2009-11-18 | K152: 18 | L152: 1 | M152: -2 | P152: 1 | S152: 1 | V152: 1
A153: 10 | C153: 12 | D153: Dec 16 12:02 | E153: Dec 31 19:13 p | F153: 17 | G153: 19 | H153: 2 | I153: 10 | J153: 2009-12-18 | K153: 18 | L153: 1 | M153: -1 | O153: 1 | S153: 1 | V153: 1
A154: 11 | B154: =B142+1 -> 2010 | C154: 13 | D154: Jan 15 07:11 A | E154: Jan 30 06:18 | F154: 16 | G154: 18 | H154: =G154-F154 -> 2 | I154: =IF(A154="","",A154) -> 11 | J154: 2010-01-16 | K154: 16 | L154: 0 | M154: -2 | P154: 1 | S154: 1 | U154: 1
A155: 12 | C155: 14 | D155: Feb 14 02:51 | E155: Feb 28 16:38 | F155: 15 | G155: 16 | H155: 1 | I155: 12 | J155: 2010-02-15 | K155: 15 | L155: 0 | M155: -1 | O155: 1 | S155: 1 | U155: 1
A156: 1 | C156: 15 | D156: Mar 15 21:01 | E156: Mar 30 02:25 | F156: 16 | G156: 18 | H156: 2 | I156: 1 | J156: 2010-03-17 | K156: 17 | L156: 1 | M156: -1 | O156: 1 | S156: 1 | V156: 1
A157: 2 | C157: 16 | D157: Apr 14 12:29 | E157: Apr 28 12:18 | F157: 15 | G157: 16 | H157: 1 | I157: 2 | J157: 2010-04-15 | K157: 15 | L157: 0 | M157: -1 | O157: 1 | S157: 1 | U157: 1
A158: 3 | C158: 17 | D158: May 14 01:04 | E158: May 27 23:07 | F158: 15 | G158: 16 | H158: 1 | I158: 3 | J158: 2010-05-15 | K158: 15 | L158: 0 | M158: -1 | O158: 1 | S158: 1 | U158: 1
A159: 4 | C159: 18 | D159: Jun 12 11:15 | E159: Jun 26 11:30 p | F159: 13 | G159: 14 | H159: 1 | I159: 4 | J159: 2010-06-13 | K159: 13 | L159: 0 | M159: -1 | O159: 1 | S159: 1 | U159: 1
A160: 5 | C160: 19 | D160: Jul 11 19:40 T | E160: Jul 26 01:37 | F160: 12 | G160: 14 | H160: 2 | I160: 5 | J160: 2010-07-13 | K160: 13 | L160: 1 | M160: -1 | O160: 1 | S160: 1 | V160: 1
A161: 6 | C161: 20 | D161: Aug 10 03:08 | E161: Aug 24 17:05 | F161: 11 | G161: 12 | H161: 1 | I161: 6 | J161: 2010-08-11 | K161: 11 | L161: 0 | M161: -1 | O161: 1 | S161: 1 | U161: 1
A162: 7 | C162: 21 | D162: Sep 8 10:30 | E162: Sep 23 09:17 | F162: 9 | G162: 11 | H162: 2 | I162: 7 | J162: 2010-09-10 | K162: 10 | L162: 1 | M162: -1 | O162: 1 | S162: 1 | V162: 1
A163: 8 | C163: 22 | D163: Oct 7 18:44 | E163: Oct 23 01:36 | F163: 8 | G163: 11 | H163: 3 | I163: 8 | J163: 2010-10-09 | K163: 9 | L163: 1 | M163: -2 | P163: 1 | S163: 1 | V163: 1
A164: 9 | C164: 23 | D164: Nov 6 04:52 | E164: Nov 21 17:27 | F164: 7 | G164: 9 | H164: 2 | I164: 9 | J164: 2010-11-07 | K164: 7 | L164: 0 | M164: -2 | P164: 1 | S164: 1 | U164: 1
A165: 10 | C165: 24 | D165: Dec 5 17:36 | E165: Dec 21 08:13 t | F165: 6 | G165: 9 | H165: 3 | I165: 10 | J165: 2010-12-07 | K165: 7 | L165: 1 | M165: -2 | P165: 1 | S165: 1 | V165: 1
A166: 11 | B166: =B154+1 -> 2011 | C166: 25 | D166: Jan 4 09:03 P | E166: Jan 19 21:21 | F166: 5 | G166: 7 | H166: 2 | I166: 11 | J166: 2011-01-05 | K166: 5 | L166: 0 | M166: -2 | P166: 1 | S166: 1 | U166: 1
A167: 12 | C167: 26 | D167: Feb 3 02:31 | E167: Feb 18 08:36 | F167: 4 | G167: 6 | H167: 2 | I167: 12 | J167: 2011-02-04 | K167: 4 | L167: 0 | M167: -2 | P167: 1 | S167: 1 | U167: 1
A168: 13 | C168: 27 | D168: Mar 4 20:46 | E168: Mar 19 18:10 | F168: 5 | G168: 7 | H168: 2 | I168: 13 | J168: 2011-03-06 | K168: 6 | L168: 1 | M168: -1 | O168: 1 | S168: 1 | V168: 1
A169: 14 | C169: 28 | D169: Apr 3 14:32 | E169: Apr 18 02:44 | F169: 4 | G169: 6 | H169: 2 | I169: 14
A170: 15 | C170: 29 | D170: May 3 06:51 | E170: May 17 11:09 | F170: 4 | G170: 5 | H170: 1 | I170: 15
A171: 16 | C171: 30 | D171: Jun 1 21:03 P | E171: Jun 15 20:13 t | F171: 2 | G171: 3 | H171: 1 | I171: 16
A172: 17 | C172: 31 | D172: Jul 1 08:54 P | E172: Jul 15 06:40 | F172: 2 | G172: 3 | H172: 1 | I172: 17
A173: 18 | C173: 32 | D173: Jul 30 18:40 | E173: Aug 13 18:58 | F173: 31 | G173: 1 | H173: 1 | I173: 18
A174: 19 | C174: 33 | D174: Aug 29 03:04 | E174: Sep 12 09:27 | F174: 30 | G174: 31 | H174: 1 | I174: 19
A175: 20 | C175: 34 | D175: Sep 27 11:09 | E175: Oct 12 02:06 | F175: 28 | G175: 30 | H175: 2 | I175: 20
A176: 21 | C176: 35 | D176: Oct 26 19:56 | E176: Nov 10 20:16 | F176: 27 | G176: 29 | H176: 2 | I176: 21
A177: 22 | C177: 36 | D177: Nov 25 06:10 P | E177: Dec 10 14:36 t | F177: 26 | G177: 28 | H177: 2 | I177: 22
A178: 23 | C178: 37 | D178: Dec 24 18:06 | E178: Jan 9 07:30 | F178: 25 | G178: 28 | H178: 3 | I178: 23 | N178: =IF($K178<>"",IF($M178=0,1,""),"") ->  | O178: =IF($K178<>"",IF($M178=-1,1,""),"") ->  | P178: =IF($K178<>"",IF($M178=-2,1,""),"") ->  | Q178: =IF($K178<>"",IF($M178=-3,1,""),"") ->  | R178: =IF($K178<>"",IF($M178=-4,1,""),"") -> 
A179: 24 | B179: =B166+1 -> 2012 | C179: 38 | D179: Jan 23 07:39 | E179: Feb 7 21:54 | F179: 24 | G179: 27 | H179: 3 | I179: 24
A180: 25 | C180: 39 | D180: Feb 21 22:35 | E180: Mar 8 09:40 | F180: 23 | G180: 25 | H180: 2 | I180: 25
A181: 26 | C181: 40 | D181: Mar 22 14:37 | E181: Apr 6 19:19 | F181: 23 | G181: 25 | H181: 2 | I181: 26
A182: 27 | C182: 41 | D182: Apr 21 07:18 | E182: May 6 03:35 | F182: 22 | G182: 24 | H182: 2 | I182: 27
A183: 28 | C183: 42 | D183: May 20 23:47 A | E183: Jun 4 11:12 p | F183: 22 | G183: 23 | H183: 1 | I183: 28
A184: 29 | C184: 43 | D184: Jun 19 15:02 | E184: Jul 3 18:52 | F184: 20 | G184: 21 | H184: 1 | I184: 29
A185: 30 | C185: 44 | D185: Jul 19 04:24 | E185: Aug 2 03:27 | F185: 20 | G185: 21 | H185: 1 | I185: 30
A186: 31 | C186: 45 | D186: Aug 17 15:54 | E186: Aug 31 13:58 | F186: 18 | G186: 19 | H186: 1 | I186: 31
A187: 32 | C187: 46 | D187: Sep 16 02:11 | E187: Sep 30 03:19 | F187: 17 | G187: 18 | H187: 1 | I187: 32
A188: 33 | C188: 47 | D188: Oct 15 12:02 | E188: Oct 29 19:50 | F188: 16 | G188: 17 | H188: 1 | I188: 33
A189: 34 | C189: 48 | D189: Nov 13 22:08 T | E189: Nov 28 14:46 n | F189: 15 | G189: 16 | H189: 1 | I189: 34
A190: 35 | C190: 49 | D190: Dec 13 08:42 | E190: Dec 28 10:21 | F190: 14 | G190: 16 | H190: 2 | I190: 35
A191: 36 | B191: =B179+1 -> 2013 | C191: 50 | D191: Jan 11 19:44 | E191: Jan 27 04:38 | F191: 12 | G191: 15 | H191: 3 | I191: 36
A192: 37 | C192: 51 | D192: Feb 10 07:20 | E192: Feb 25 20:26 | F192: 11 | G192: 13 | H192: 2 | I192: 37
A193: 38 | C193: 52 | D193: Mar 11 19:51 | E193: Mar 27 09:27 | F193: 12 | G193: 15 | H193: 3 | I193: 38
A194: 39 | C194: 53 | D194: Apr 10 09:35 | E194: Apr 25 19:57 p | F194: 11 | G194: 13 | H194: 2 | I194: 39
A195: 40 | C195: 54 | D195: May 10 00:29 A | E195: May 25 04:25 n | F195: 11 | G195: 13 | H195: 2 | I195: 40
A196: 41 | C196: 55 | D196: Jun 8 15:56 | E196: Jun 23 11:32 | F196: 9 | G196: 11 | H196: 2 | I196: 41
A197: 42 | C197: 56 | D197: Jul 8 07:14 | E197: Jul 22 18:15 | F197: 9 | G197: 10 | H197: 1 | I197: 42
A198: 43 | C198: 57 | D198: Aug 6 21:51 | E198: Aug 21 01:45 | F198: 8 | G198: 9 | H198: 1 | I198: 43
A199: 44 | C199: 58 | D199: Sep 5 11:36 | E199: Sep 19 11:13 | F199: 6 | G199: 7 | H199: 1 | I199: 44
A200: 45 | C200: 59 | D200: Oct 5 00:35 | E200: Oct 18 23:38 n | F200: 6 | G200: 7 | H200: 1 | I200: 45
A201: 46 | C201: 60 | D201: Nov 3 12:50 H | E201: Nov 17 15:16 | F201: 4 | G201: 5 | H201: 1 | I201: 46
A202: 47 | C202: 61 | D202: Dec 3 00:22 | E202: Dec 17 09:28 | F202: 4 | G202: 5 | H202: 1 | I202: 47 | L202: =IF($K202<>"",IF($K202>=$F202,$K202-$F202,$K202),"") ->  | M202: =IF($K202<>"",IF($K202<=$G202,$K202-$G202,-$G202),"") -> 
A203: 48 | C203: 62 | I203: 48
A204: 49 | C204: 63 | I204: 49
A205: 50 | C205: 64 | I205: 50
L207: =SUM(L18:L205) -> 42 | M207: =SUM(M18:M205) -> -207 | N207: =SUM(N18:N205) -> 8 | O207: =SUM(O18:O205) -> 72 | P207: 60 | Q207: 5 | R207: 0 | S207: =SUM(S18:S205) -> 145 | T207: =SUM(T18:T205) -> 0 | U207: 103 | V207: 42 | W207: 0
... 1 more rows

Sheet Blad2

Sheet Blad3
